bitfinex-derivatives/quotes_BTCF0:USTF0_20250212
["timestamp","ask_amount","ask_price","bid_price","bid_amount"]
[1739329381868,0.2090299,95695.0,95676.0,0.3608]
[1739329382077,0.2090299,95695.0,95681.0,0.2090582]
[1739329382574,0.0751,95700.0,95684.0,0.2090512]
[1739329382772,0.2090248,95697.0,95684.0,0.2090512]
[1739329382973,0.02958,95686.0,95684.0,0.2090512]
[1739329383173,0.03158,95686.0,95684.0,0.2090512]
[1739329383476,0.03358,95686.0,95684.0,0.2090512]
[1739329383979,0.03158,95686.0,95684.0,0.2090512]
[1739329384173,0.03358,95686.0,95684.0,0.2090512]
[1739329384573,0.04058,95686.0,95684.0,0.22117901]
[1739329385275,0.03158,95686.0,95684.0,0.22017901]
[1739329385580,0.03958,95686.0,95684.0,0.22117901]
[1739329385779,0.04058,95686.0,95684.0,0.22117901]
[1739329385966,0.04058,95686.0,95684.0,0.22017901]
[1739329386170,0.04158,95686.0,95684.0,0.22117901]
[1739329386479,0.04158,95686.0,95685.0,0.3608]
[1739329388078,0.03258,95686.0,95685.0,0.3608]
[1739329388274,0.04058,95686.0,95685.0,0.3608]
[1739329388875,0.02958,95686.0,95685.0,0.3608]
[1739329389080,0.03758,95686.0,95685.0,0.3628]
[1739329389467,0.03758,95686.0,95685.0,0.3618]
[1739329389671,0.03258,95686.0,95685.0,0.3608]
[1739329389883,0.04058,95686.0,95685.0,0.3618]
[1739329390081,0.03758,95686.0,95685.0,0.3618]
[1739329390382,0.27664666,95692.0,95685.0,0.5708491]
[1739329390769,0.003,95686.0,95685.0,0.5708491]
[1739329391279,0.003,95686.0,95685.0,0.5698491]
[1739329391476,0.011,95686.0,95685.0,0.5708491]
[1739329392072,0.003,95686.0,95685.0,0.5698491]
[1739329392278,0.011,95686.0,95685.0,0.5708491]
[1739329392581,0.011,95686.0,95685.0,0.6446491]
[1739329392776,0.008,95686.0,95685.0,0.5708491]
[1739329392981,0.01,95686.0,95685.0,0.6446491]
[1739329393882,0.008,95686.0,95685.0,0.6446491]
[1739329394078,0.011,95686.0,95685.0,0.6446491]
[1739329394279,0.003,95686.0,95685.0,0.2828491]
[1739329394580,0.02339554,95686.0,95685.0,0.001]
[1739329395779,0.02339554,95686.0,95681.0,0.07368]
[1739329395780,0.2090509,95685.0,95681.0,0.07368]
[1739329396183,0.2090567,95683.0,95681.0,0.07368]
[1739329396879,0.2090694,95677.0,95676.0,0.07356]
[1739329397684,0.002,95685.0,95676.0,0.07356]
[1739329397876,0.2090561,95683.0,95676.0,0.07356]
[1739329398076,0.2090561,95683.0,95677.0,0.0736]
[1739329398585,0.2090561,95683.0,95678.0,0.2090649]
[1739329398779,0.2110561,95683.0,95678.0,0.2090649]
[1739329398981,0.2110561,95683.0,95679.0,0.1516]
[1739329399697,0.3608,95680.0,95675.0,0.00015678]
[1739329399985,0.2091209,95653.0,95651.0,0.07356]
[1739329400182,0.2091209,95653.0,95640.0,0.33536314]
[1739329400383,0.2091209,95653.0,95642.0,0.07356]
[1739329400988,0.2091209,95653.0,95643.0,0.00015678]
[1739329401689,0.2121209,95653.0,95643.0,0.00015678]
[1739329402091,0.2131209,95653.0,95643.0,0.00015678]
[1739329403690,0.2131209,95653.0,95644.0,0.07348]
[1739329403992,0.2131209,95653.0,95643.0,0.00015678]
[1739329404286,0.2131209,95653.0,95644.0,0.07344]
[1739329404993,0.22682079,95653.0,95644.0,0.07344]
[1739329405194,0.22682079,95653.0,95643.0,0.00015678]
[1739329405499,0.22682079,95653.0,95643.0,0.07359678]
[1739329412601,0.22682079,95653.0,95643.0,0.00015678]
[1739329414900,0.004,95653.0,95651.0,0.2091243]
[1739329415109,0.004,95653.0,95652.0,0.0748079]
[1739329417602,0.002,95653.0,95652.0,0.0818079]
[1739329418005,0.001,95653.0,95652.0,0.0848079]
[1739329418506,0.002,95653.0,95652.0,0.0818079]
[1739329419204,0.004,95653.0,95652.0,0.0748079]
[1739329422207,0.00015678,95662.0,95656.0,0.2091128]
[1739329422408,0.00015678,95662.0,95657.0,0.3725111]
[1739329422809,0.00015678,95662.0,95658.0,0.2091088]
[1739329423403,0.2091078,95659.0,95657.0,0.1634]
[1739329423602,0.2091209,95653.0,95652.0,0.0746079]
[1739329424310,0.2091209,95653.0,95652.0,0.0015679]
[1739329425005,0.2101209,95653.0,95652.0,0.0015679]
[1739329426207,0.2131209,95653.0,95652.0,0.0015679]
[1739329427006,0.004,95653.0,95652.0,0.0015679]
[1739329427605,0.004,95653.0,95652.0,0.0819679]
[1739329428911,0.004,95653.0,95652.0,0.09591022]
[1739329429213,0.004,95653.0,95652.0,0.09434232]
[1739329432412,0.01754,95653.0,95652.0,0.09434232]
[1739329433313,0.01754,95653.0,95649.0,0.3608]
[1739329433511,0.01754,95653.0,95650.0,0.073]
[1739329433710,0.2266621,95653.0,95650.0,0.073]
[1739329433917,0.01754,95653.0,95650.0,0.073]
[1739329434413,0.01454,95653.0,95650.0,0.073]
[1739329434609,0.01454,95653.0,95650.0,0.2821267]
[1739329434804,0.01454,95653.0,95651.0,0.2091244]
[1739329435014,0.01554,95653.0,95651.0,0.2091244]
[1739329435316,0.01654,95653.0,95651.0,0.2091244]
[1739329437419,0.01454,95653.0,95651.0,0.2091244]
[1739329437621,0.01654,95653.0,95651.0,0.2091244]
[1739329439311,0.01654,95653.0,95652.0,0.07276]
[1739329440319,0.01654,95653.0,95651.0,0.2091244]
[1739329440615,0.01454,95653.0,95652.0,0.0728]
[1739329440820,0.01654,95653.0,95652.0,0.0728]
[1739329441019,0.01754,95653.0,95652.0,0.0728]
[1739329441224,0.01754,95653.0,95652.0,0.4336]
[1739329441520,0.01654,95653.0,95652.0,0.4336]
[1739329441723,0.01654,95653.0,95652.0,0.3608]
[1739329441919,0.01554,95653.0,95652.0,0.07276]
[1739329442222,0.01654,95653.0,95652.0,0.07276]
[1739329443315,0.01754,95653.0,95652.0,0.07276]
[1739329444926,0.00015678,95662.0,95661.0,0.2091033]
[1739329445125,0.00015678,95662.0,95661.0,0.5699033]
[1739329446532,0.00915678,95662.0,95661.0,0.5709033]
[1739329446927,0.00915678,95662.0,95661.0,0.6435033]
[1739329447427,0.01315678,95662.0,95661.0,0.6435033]
[1739329447828,0.08998188,95662.0,95661.0,0.6435033]
[1739329450637,0.01315678,95662.0,95661.0,0.6435033]
[1739329451233,0.01315678,95662.0,95661.0,0.2101033]
[1739329451427,0.01315678,95662.0,95661.0,0.07348]
[1739329451636,0.01315678,95662.0,95661.0,0.001]
[1739329455529,0.209114,95657.0,95656.0,0.0724]
[1739329455738,0.09115679,95662.0,95656.0,0.0724]
[1739329455940,0.2091045,95661.0,95656.0,0.0724]
[1739329456141,0.2091062,95660.0,95656.0,0.0724]
[1739329456346,0.08975678,95662.0,95656.0,0.0724]
[1739329456536,0.2091102,95658.0,95656.0,0.0724]
[1739329456739,0.006,95657.0,95656.0,0.0724]
[1739329457943,0.2091102,95658.0,95656.0,0.0724]
[1739329458540,0.002,95657.0,95656.0,0.0724]
[1739329458745,0.2091241,95652.0,95650.0,0.3608]
[1739329459547,0.002,95658.0,95650.0,0.3608]
[1739329459739,0.2091187,95654.0,95647.0,0.07228]
[1739329459943,0.2091258,95651.0,95644.0,0.07228]
[1739329460141,0.3608,95656.0,95644.0,0.07228]
[1739329460444,0.2091307,95649.0,95644.0,0.07228]
[1739329461042,0.3608,95656.0,95644.0,0.07228]
[1739329461548,0.2091307,95649.0,95643.0,0.00015678]
[1739329461745,0.2091383,95645.0,95644.0,0.002]
[1739329463347,0.2091383,95645.0,95644.0,0.003]
[1739329465848,0.22226672,95645.0,95644.0,0.003]
[1739329468643,0.2091798,95627.0,95625.0,0.2091802]
[1739329468844,0.2091821,95625.0,95624.0,0.00156837]
[1739329470252,0.2081821,95625.0,95624.0,0.00156837]
[1739329471151,0.2081821,95625.0,95624.0,0.00356837]
[1739329471947,0.2081821,95625.0,95624.0,0.00456837]
[1739329472153,0.22142297,95625.0,95624.0,0.00456837]
[1739329473241,0.2091983,95618.0,95615.0,0.00015686]
[1739329473441,0.2092001,95617.0,95615.0,0.00015686]
[1739329474048,0.2092345,95601.0,95600.0,0.1]
[1739329474255,0.2012345,95601.0,95600.0,0.1]
[1739329474954,0.1972345,95601.0,95600.0,0.1]
[1739329475554,0.1982345,95601.0,95600.0,0.1]
[1739329476651,0.1992345,95601.0,95600.0,0.115]
[1739329477252,0.2032345,95601.0,95600.0,0.101]
[1739329478862,0.21638028,95601.0,95600.0,0.101]
[1739329480956,0.01914578,95601.0,95600.0,0.101]
[1739329484852,0.006,95601.0,95600.0,0.101]
[1739329494970,0.2152345,95601.0,95600.0,0.17324]
[1739329495654,0.2152345,95601.0,95600.0,0.101]
[1739329500464,0.209306,95569.0,95566.0,0.2093107]
[1739329500666,0.3608,95573.0,95561.0,0.1566]
[1739329500979,0.2093178,95563.0,95562.0,0.07208]
[1739329501166,0.3608,95573.0,95562.0,0.07208]
[1739329501372,0.2093047,95569.0,95568.0,0.2093061]
[1739329501675,0.002,95569.0,95568.0,0.3608]
[1739329502266,0.001,95569.0,95568.0,0.3608]
[1739329502571,0.001,95573.0,95568.0,0.3608]
[1739329502776,0.001,95573.0,95571.0,0.2092995]
[1739329502979,0.001,95573.0,95572.0,0.0808]
[1739329503365,0.00015694,95577.0,95576.0,0.2092893]
[1739329503568,0.00015694,95577.0,95576.0,0.5700893]
[1739329504983,0.00115694,95577.0,95576.0,0.5700893]
[1739329505580,0.00415694,95577.0,95576.0,0.5700893]
[1739329506377,0.00415694,95577.0,95576.0,0.6420493]
[1739329507579,0.00315694,95577.0,95576.0,0.6420493]
[1739329507974,0.00015694,95577.0,95576.0,0.6420493]
[1739329508785,0.00115694,95577.0,95576.0,0.6420493]
[1739329509579,0.00015694,95577.0,95576.0,0.6420493]
[1739329511174,0.00115694,95577.0,95576.0,0.6420493]
[1739329512381,0.00115694,95577.0,95576.0,0.43268]
[1739329512570,0.00015694,95577.0,95576.0,0.43268]
[1739329512776,0.00015694,95577.0,95576.0,0.43264]
[1739329513185,0.21082471,95592.0,95583.0,0.2092726]
[1739329513479,0.21082471,95592.0,95584.0,0.1635]
[1739329514780,0.21082471,95592.0,95591.0,0.3608]
[1739329514781,0.00156951,95592.0,95591.0,0.3608]
[1739329515083,0.00015694,95598.0,95597.0,0.2092434]
[1739329515968,0.3711945,95620.0,95608.0,0.2092178]
[1739329516286,0.209179,95627.0,95614.0,0.3608]
[1739329516581,0.40934524,95633.0,95615.0,0.07192]
[1739329516771,0.209182,95626.0,95615.0,0.07192]
[1739329517481,0.2091902,95622.0,95615.0,0.07192]
[1739329517674,0.24844524,95617.0,95615.0,0.07192]
[1739329518786,0.24844524,95617.0,95615.0,0.07292]
[1739329519385,0.27044524,95617.0,95615.0,0.07292]
[1739329519581,0.27044524,95617.0,95615.0,0.2821227]
[1739329520183,0.022,95617.0,95615.0,0.2821227]
[1739329520575,0.022,95617.0,95616.0,0.07196]
[1739329521578,0.022,95617.0,95615.0,0.2102027]
[1739329521888,0.022,95617.0,95616.0,0.07192]
[1739329522387,0.022,95617.0,95616.0,0.07296]
[1739329522781,0.015,95617.0,95616.0,0.07296]
[1739329522974,0.022,95617.0,95616.0,0.07296]
[1739329529392,0.022,95617.0,95616.0,0.43376]
[1739329529891,0.022,95617.0,95616.0,0.43412]
[1739329530685,0.022,95617.0,95616.0,0.43408]
[1739329531788,0.022,95617.0,95616.0,0.43404]
[1739329533792,0.3828,95617.0,95616.0,0.001]
[1739329534098,0.2092171,95609.0,95604.0,0.07224]
[1739329534480,0.2092171,95609.0,95598.0,0.2092397]
[1739329534685,0.5700171,95609.0,95598.0,0.2092397]
[1739329534884,0.5700171,95609.0,95594.0,0.07228]
[1739329535190,0.5700171,95609.0,95595.0,0.2092473]
[1739329535593,0.5770171,95609.0,95596.0,0.2092444]
[1739329535986,0.5770171,95609.0,95601.0,0.2092327]
[1739329536195,0.5920171,95609.0,95608.0,0.00115694]
[1739329536995,0.022,95609.0,95608.0,0.00115694]
[1739329537201,0.022,95609.0,95608.0,0.07945694]
[1739329539189,0.2054005,95617.0,95608.0,0.07945694]
[1739329539593,0.2092084,95613.0,95608.0,0.07945694]
[1739329540182,0.2092084,95613.0,95608.0,0.07845694]
[1739329540497,0.2092084,95613.0,95608.0,0.07945694]
[1739329540798,0.2092084,95613.0,95608.0,0.08045694]
[1739329540993,0.2092084,95613.0,95611.0,0.2092117]
[1739329541291,0.022,95613.0,95611.0,0.2092117]
[1739329541487,0.022,95613.0,95612.0,0.3608]
[1739329542295,0.015,95613.0,95612.0,0.3608]
[1739329542499,0.007,95613.0,95612.0,0.3608]
[1739329542699,0.00015694,95628.0,95620.0,0.2091929]
[1739329542993,0.00015694,95628.0,95620.0,0.6423529]
[1739329543499,0.00015694,95628.0,95627.0,0.2091776]
[1739329545094,0.00115694,95628.0,95627.0,0.2091776]
[1739329547299,0.08201721,95628.0,95627.0,0.2091776]
[1739329548494,0.08101721,95628.0,95627.0,0.2091776]
[1739329549296,0.07801721,95628.0,95627.0,0.2091776]
[1739329549801,0.07801721,95628.0,95624.0,0.07208]
[1739329549997,0.29319261,95628.0,95627.0,0.001]
[1739329550294,0.29519261,95628.0,95627.0,0.001]
[1739329550691,0.29719261,95628.0,95627.0,0.001]
[1739329551291,0.08201721,95628.0,95620.0,0.3608]
[1739329551497,0.2091907,95621.0,95620.0,0.3608]
[1739329552802,0.0806,95626.0,95612.0,0.3608]
[1739329552803,0.3608,95622.0,95612.0,0.43288]
[1739329553507,0.2092083,95613.0,95612.0,0.43288]
[1739329554000,0.2092083,95613.0,95612.0,0.3608]
[1739329555007,0.2132083,95613.0,95612.0,0.3608]
[1739329556407,0.2212083,95613.0,95612.0,0.3618]
[1739329556609,0.2252083,95613.0,95612.0,0.3618]
[1739329557005,0.29807842,95613.0,95612.0,0.3618]
[1739329557203,0.30007842,95613.0,95612.0,0.3618]
[1739329557508,0.31234093,95613.0,95612.0,0.3618]
[1739329559003,0.31334093,95613.0,95612.0,0.3618]
[1739329559713,0.30234093,95613.0,95612.0,0.3608]
[1739329559910,0.31234093,95613.0,95612.0,0.3618]
[1739329560206,0.30007842,95613.0,95612.0,0.3618]
[1739329560607,0.30107842,95613.0,95612.0,0.3618]
[1739329563311,0.2242083,95613.0,95612.0,0.3618]
[1739329563500,0.2132083,95613.0,95612.0,0.3608]
[1739329563701,0.2232083,95613.0,95612.0,0.3618]
[1739329564398,0.2132083,95613.0,95612.0,0.3608]
[1739329564606,0.2182083,95613.0,95612.0,0.3608]
[1739329564802,0.2182083,95613.0,95612.0,0.5700104]
[1739329565204,0.009,95613.0,95612.0,0.5700104]
[1739329566012,0.004,95613.0,95612.0,0.5700104]
[1739329566309,0.016,95613.0,95612.0,0.5710104]
[1739329566503,0.013,95613.0,95612.0,0.5710104]
[1739329566703,0.013,95613.0,95612.0,0.5833061]
[1739329566908,0.012,95613.0,95612.0,0.5833061]
[1739329567109,0.52499418,95627.0,95612.0,0.3740957]
[1739329567310,0.52499418,95627.0,95626.0,0.2091798]
[1739329567611,0.52499418,95627.0,95626.0,0.2809398]
[1739329570007,0.52699418,95627.0,95626.0,0.2809398]
[1739329570508,0.52699418,95627.0,95618.0,0.0786]
[1739329570717,0.52599418,95627.0,95619.0,0.0716]
[1739329571014,0.2091899,95622.0,95621.0,0.2091899]
[1739329571209,0.31124883,95627.0,95625.0,0.209181]
[1739329571516,0.30984882,95627.0,95625.0,0.209181]
[1739329572308,0.31084882,95627.0,95625.0,0.209181]
[1739329572810,0.30884882,95627.0,95625.0,0.209181]
[1739329573305,0.31084882,95627.0,95625.0,0.209181]
[1739329575207,0.30984882,95627.0,95625.0,0.209181]
[1739329575407,0.31284882,95627.0,95625.0,0.209181]
[1739329576214,0.07686435,95626.0,95625.0,0.209181]
[1739329577422,0.07886435,95626.0,95625.0,0.209181]
[1739329578509,0.08086435,95626.0,95625.0,0.280621]
[1739329579106,0.07686435,95626.0,95625.0,0.280621]
[1739329579311,0.08386435,95626.0,95625.0,0.281621]
[1739329579712,0.07886435,95626.0,95625.0,0.281621]
[1739329579911,0.08086435,95626.0,95625.0,0.281621]
[1739329580216,0.08086435,95626.0,95625.0,0.280621]
[1739329580423,0.004,95626.0,95625.0,0.280621]
[1739329581018,0.007,95626.0,95625.0,0.280621]
[1739329581216,0.007,95626.0,95625.0,0.29249202]
[1739329582221,0.005,95626.0,95625.0,0.29249202]
[1739329582409,0.007,95626.0,95625.0,0.29349202]
[1739329582616,0.002,95626.0,95625.0,0.29349202]
[1739329582822,0.007,95626.0,95625.0,0.22205202]
[1739329583124,0.007,95626.0,95625.0,0.29341202]
[1739329584409,0.007,95626.0,95625.0,0.01287102]
[1739329584615,0.2093054,95579.0,95570.0,0.25994007]
[1739329584818,0.3608,95578.0,95570.0,0.25994007]
[1739329585626,0.3608,95578.0,95570.0,0.24781418]
[1739329586017,0.3608,95578.0,95577.0,0.18905313]
[1739329586426,0.37321839,95578.0,95577.0,0.18905313]
[1739329586628,0.37321839,95578.0,95577.0,0.19205313]
[1739329587831,0.45008012,95578.0,95577.0,0.004]
[1739329589627,0.52228012,95578.0,95539.0,0.1846813]
[1739329589828,0.5701606,95553.0,95541.0,0.0722]
[1739329590019,0.5701606,95553.0,95541.0,0.08417105]
[1739329590834,0.2094015,95535.0,95528.0,0.3608]
[1739329591033,0.2094015,95535.0,95534.0,0.0771]
[1739329592127,0.3608,95540.0,95534.0,0.0771]
[1739329592128,0.3598,95540.0,95534.0,0.0771]
[1739329592333,0.3448,95540.0,95534.0,0.0771]
[1739329593336,0.3448,95540.0,95535.0,1.5]
[1739329594827,0.3448,95540.0,95536.0,0.0722]
[1739329595027,0.3458,95540.0,95536.0,0.0722]
[1739329595530,0.3478,95540.0,95536.0,0.0722]
[1739329596236,0.3478,95540.0,95536.0,0.0782]
[1739329596439,0.3468,95540.0,95536.0,0.0832]
[1739329596736,0.3468,95540.0,95537.0,4.058e-05]
[1739329598331,0.3468,95540.0,95538.0,0.07204]
[1739329598527,0.5561909,95540.0,95538.0,0.07204]
[1739329599431,0.5551909,95540.0,95538.0,0.07204]
[1739329599637,0.5551909,95540.0,95538.0,0.07704]
[1739329599838,0.5551909,95540.0,95538.0,0.08204]
[1739329602538,0.3458,95540.0,95538.0,0.2914334]
[1739329603236,0.3458,95540.0,95538.0,0.01]
[1739329603434,0.5551898,95540.0,95538.0,0.01]
[1739329604941,0.5541898,95540.0,95538.0,0.005]
[1739329605137,0.5551898,95540.0,95538.0,0.004]
[1739329605339,0.5551898,95540.0,95538.0,0.006]
[1739329605734,0.5561898,95540.0,95538.0,0.004]
[1739329605942,0.2083935,95538.0,95537.0,4.058e-05]
[1739329606145,0.5691935,95538.0,95537.0,4.058e-05]
[1739329606445,0.3608,95538.0,95537.0,4.058e-05]
[1739329607143,0.3608,95538.0,95537.0,0.07220058]
[1739329607941,0.3608,95538.0,95537.0,4.058e-05]
[1739329608243,0.3618,95538.0,95537.0,4.058e-05]
[1739329608645,0.37723927,95538.0,95537.0,4.058e-05]
[1739329609531,0.3648,95538.0,95537.0,4.058e-05]
[1739329616345,0.2094219,95525.0,95524.0,0.00010574]
[1739329616551,0.5702219,95525.0,95524.0,0.00010574]
[1739329618851,0.2094328,95520.0,95519.0,0.00156986]
[1739329620954,0.008,95520.0,95512.0,0.1594]
[1739329621155,0.5702482,95513.0,95512.0,0.1594]
[1739329622259,0.5712482,95513.0,95512.0,0.1594]
[1739329624844,0.58556641,95513.0,95512.0,0.1594]
[1739329628752,0.20947,95503.0,95502.0,0.07272]
[1739329628954,0.57027,95503.0,95502.0,0.07272]
[1739329629157,0.2094744,95501.0,95500.0,0.1]
[1739329630048,0.2074744,95501.0,95500.0,0.1]
[1739329631151,0.2074744,95501.0,95500.0,0.103]
[1739329631547,0.22216951,95501.0,95500.0,0.1]
[1739329631744,0.22316951,95501.0,95500.0,0.1]
[1739329634251,0.22316951,95501.0,95480.0,0.1539]
[1739329634252,0.01569511,95501.0,95480.0,0.1539]
[1739329634451,0.5703183,95481.0,95480.0,0.1539]
[1739329635046,0.2095622,95461.0,95460.0,0.18805313]
[1739329635246,0.3608,95461.0,95460.0,0.18805313]
[1739329635651,0.3558,95461.0,95460.0,0.18805313]
[1739329636459,0.36562535,95461.0,95460.0,0.18805313]
[1739329637352,0.36662535,95461.0,95460.0,0.19205313]
[1739329637660,0.3608,95465.0,95460.0,0.004]
[1739329637855,0.3608,95465.0,95451.0,0.289383]
[1739329637856,0.006,95461.0,95451.0,0.289383]
[1739329638255,0.1322085,95461.0,95452.0,0.082]
[1739329638452,0.3608,95455.0,95452.0,0.082]
[1739329639265,0.6608,95455.0,95426.0,0.00993234]
[1739329639447,0.6608,95455.0,95401.0,0.5987]
[1739329639448,0.5704368,95427.0,95411.0,0.0782]
[1739329639651,0.3608,95416.0,95411.0,0.0782]
[1739329640552,0.3608,95416.0,95413.0,0.10279889]
[1739329640751,0.37034049,95416.0,95413.0,0.10279889]
[1739329641060,0.0524177,95412.0,95372.0,0.01287649]
[1739329641357,0.7216,95373.0,95348.0,0.4937684]
[1739329641659,0.3608,95364.0,95348.0,0.50340029]
[1739329641856,0.3608,95364.0,95348.0,0.4937684]
[1739329642050,0.88092001,95415.0,95359.0,0.3608]
[1739329642051,0.0001573,95370.0,95359.0,0.3608]
[1739329642252,0.0001573,95370.0,95360.0,0.3608]
[1739329642448,0.19027832,95370.0,95351.0,0.2098027]
[1739329642650,0.3608,95372.0,95356.0,0.3608]
[1739329642851,0.19027832,95390.0,95350.0,0.19027832]
[1739329642852,0.0001573,95375.0,95350.0,0.19027832]
[1739329643054,0.0001573,95375.0,95367.0,0.3608]
[1739329643363,0.0001573,95375.0,95368.0,0.13396]
[1739329643563,0.0001573,95375.0,95367.0,0.3608]
[1739329643864,0.0001573,95375.0,95368.0,0.1358]
[1739329644263,0.0001573,95375.0,95350.0,0.19027832]
[1739329644264,0.3608,95369.0,95350.0,0.19027832]
[1739329644457,0.0001573,95375.0,95359.0,0.55107832]
[1739329644771,0.0031573,95375.0,95360.0,0.13656]
[1739329644954,0.0031573,95375.0,95359.0,0.55107832]
[1739329645157,0.0031573,95375.0,95363.0,0.2097767]
[1739329645464,0.3608,95392.0,95360.0,0.32675832]
[1739329645465,0.3608,95392.0,95382.0,0.2097345]
[1739329645765,0.3608,95392.0,95383.0,0.13652]
[1739329646665,0.3748,95392.0,95384.0,0.77528]
[1739329647065,0.3818,95392.0,95384.0,0.77528]
[1739329647255,0.3678,95392.0,95382.0,0.19027832]
[1739329647457,0.3608,95383.0,95382.0,0.19027832]
[1739329647656,0.3608,95383.0,95329.0,0.3608]
[1739329647855,0.57207832,95392.0,95350.0,0.19027832]
[1739329647856,0.3608,95361.0,95350.0,0.19027832]
[1739329648062,0.3608,95370.0,95358.0,0.3608]
[1739329648257,0.3608,95370.0,95369.0,0.2097643]
[1739329648464,0.3608,95378.0,95369.0,0.2097643]
[1739329648666,0.3608,95378.0,95370.0,0.0762]
[1739329649752,0.3608,95377.0,95370.0,0.0762]
[1739329649968,0.3608,95377.0,95371.0,0.13712]
[1739329650551,0.44912529,95377.0,95371.0,0.13712]
[1739329650858,0.44912529,95377.0,95361.0,0.06874773]
[1739329651160,0.3608,95362.0,95352.0,0.77544]
[1739329651368,0.3608,95353.0,95352.0,0.77544]
[1739329651764,0.3608,95353.0,95352.0,0.47099101]
[1739329652064,0.3608,95353.0,95333.0,0.2098424]
[1739329652065,0.3608,95353.0,95344.0,0.11647571]
[1739329652277,0.3608,95345.0,95312.0,0.3608]
[1739329652562,0.3608,95327.0,95321.0,0.13736]
[1739329652760,0.3608,95327.0,95322.0,0.13672]
[1739329653263,0.3608,95327.0,95322.0,0.13644]
[1739329653657,0.3608,95327.0,95323.0,0.13624]
[1739329653859,0.3628,95327.0,95323.0,0.3461036]
[1739329654161,0.3638,95327.0,95323.0,0.13624]
[1739329654352,0.3638,95327.0,95324.0,0.13628]
[1739329654859,0.0001573,95334.0,95333.0,0.2098434]
[1739329655268,0.0001573,95334.0,95333.0,1.5]
[1739329655565,0.0001573,95334.0,95327.0,0.3608]
[1739329656268,0.0001573,95334.0,95324.0,0.13628]
[1739329656457,0.0011573,95334.0,95324.0,0.13628]
[1739329656853,0.0031573,95334.0,95324.0,0.13628]
[1739329657673,0.05104474,95333.0,95300.0,0.29027832]
[1739329657861,0.3608,95311.0,95300.0,0.1]
[1739329658171,0.3608,95301.0,95280.0,0.03564]
[1739329658463,0.3608,95301.0,95281.0,0.13624]
[1739329658663,0.3608,95301.0,95281.0,0.13604]
[1739329658860,0.00015739,95300.0,95290.0,0.19027832]
[1739329659056,0.00015739,95300.0,95295.0,0.3608]
[1739329659260,0.01006433,95300.0,95287.0,0.3608]
[1739329659462,0.00015739,95300.0,95287.0,0.3608]
[1739329659659,0.00015739,95300.0,95290.0,0.17027832]
[1739329660069,0.00015739,95300.0,95288.0,0.13572]
[1739329660259,0.00015739,95300.0,95290.0,0.19027832]
[1739329661160,0.3608,95292.0,95257.0,0.3608]
[1739329661355,0.3608,95258.0,95247.0,0.3608]
[1739329662857,0.6608,95258.0,95228.0,0.3608]
[1739329663067,0.3608,95249.0,95228.0,0.3608]
[1739329663271,0.55107832,95240.0,95228.0,0.3608]
[1739329663468,0.2100508,95239.0,95219.0,0.3608]
[1739329663971,0.36220001,95240.0,95229.0,0.3608]
[1739329664164,0.00015748,95240.0,95229.0,0.3608]
[1739329664370,0.3608,95238.0,95227.0,0.1348]
[1739329665068,0.00015748,95240.0,95228.0,0.13464]
[1739329665574,0.00015748,95240.0,95230.0,0.19027832]
[1739329665870,0.00015748,95240.0,95233.0,0.2100616]
[1739329666271,0.00115748,95240.0,95234.0,0.1344]
[1739329666476,0.01104711,95240.0,95238.0,0.3608]
[1739329666662,0.00115748,95240.0,95238.0,0.5708518]
[1739329667171,0.00115748,95240.0,95238.0,0.35009105]
[1739329668767,0.01089118,95240.0,95238.0,0.35009105]
[1739329668961,0.00015748,95240.0,95238.0,0.35009105]
[1739329669676,0.00015748,95240.0,95233.0,0.134]
[1739329670066,0.00015748,95240.0,95230.0,0.19027832]
[1739329670271,0.2100505,95239.0,95222.0,0.59549066]
[1739329670673,0.2100505,95239.0,95223.0,0.13532]
[1739329670977,0.00015748,95240.0,95239.0,0.00010563]
[1739329671275,0.00015748,95240.0,95227.0,0.2100755]
[1739329671476,0.3608,95233.0,95227.0,0.2100755]
[1739329672063,0.3608,95233.0,95225.0,0.13532]
[1739329673178,0.3608,95233.0,95222.0,0.59549066]
[1739329673478,0.3618,95233.0,95223.0,0.13468]
[1739329673669,0.3608,95224.0,95223.0,0.13468]
[1739329674269,0.3608,95224.0,95222.0,0.59549066]
[1739329674871,0.3608,95224.0,95223.0,0.02173576]
[1739329675177,0.6608,95224.0,95200.0,0.1]
[1739329675476,0.3608,95205.0,95200.0,0.1206161]
[1739329675785,0.3608,95205.0,95167.0,0.00970891]
[1739329675984,0.3608,95181.0,95176.0,0.0194991]
[1739329676471,0.3608,95181.0,95180.0,0.2101807]
[1739329677470,0.3608,95181.0,95176.0,0.0194991]
[1739329677471,0.00015757,95188.0,95187.0,0.2101653]
[1739329678579,0.00015757,95188.0,95187.0,0.3428453]
[1739329678976,0.3608,95205.0,95187.0,0.13268]
[1739329679175,0.37048747,95205.0,95203.0,0.2101287]
[1739329680580,0.37048747,95205.0,95204.0,0.01994757]
[1739329680890,0.37548747,95205.0,95204.0,0.01994757]
[1739329681379,0.58561297,95205.0,95183.0,0.2101731]
[1739329681580,0.3608,95188.0,95186.0,0.02048585]
[1739329681885,0.3608,95188.0,95186.0,0.23065205]
[1739329682086,0.3608,95197.0,95196.0,0.2101454]
[1739329682382,0.3608,95197.0,95187.0,0.17957062]
[1739329682576,0.37548747,95205.0,95187.0,0.54037062]
[1739329682776,0.01468747,95205.0,95204.0,0.2101277]
[1739329682977,0.00968747,95205.0,95195.0,0.40042552]
[1739329683185,0.3608,95199.0,95188.0,0.13132]
[1739329683387,0.05111529,95197.0,95192.0,0.210153]
[1739329683580,0.05111529,95197.0,95195.0,0.2101473]
[1739329684279,0.05111529,95197.0,95189.0,0.1312]
[1739329684679,0.3608,95190.0,95186.0,0.02048585]
[1739329687382,0.3618,95190.0,95186.0,0.02048585]
[1739329688078,0.3608,95187.0,95186.0,0.02048585]
[1739329688985,0.3608,95187.0,95182.0,0.02267653]
[1739329689579,0.3618,95187.0,95182.0,0.02267653]
[1739329690086,0.3608,95187.0,95182.0,0.02267653]
[1739329690381,0.54077253,95187.0,95185.0,0.2101677]
[1739329691184,0.54077253,95187.0,95182.0,0.01293657]
[1739329691486,0.54077253,95187.0,95182.0,0.001]